bitfinex/quotes_ETHUSD_20241106
["timestamp","ask_amount","ask_price","bid_price","bid_amount"]
[1730881677196,0.5686,2584.8,2583.8,0.06933581]
[1730881677349,0.5686,2584.8,2583.7,1.10166645]
[1730881678404,0.5686,2584.8,2583.5,0.50129609]
[1730881678560,0.68532475,2584.7,2583.5,0.11389609]
[1730881678754,0.5686,2584.3,2582.7,0.7528]
[1730881679015,0.5686,2584.3,2583.0,0.55166645]
[1730881679652,0.5686,2584.3,2583.1,0.3874]
[1730881679863,0.5686,2584.3,2583.3,3.0]
[1730881680069,0.5686,2584.3,2583.5,0.7742]
[1730881680358,0.5686,2584.3,2584.0,0.55]
[1730881680558,0.5686,2584.3,2584.1,0.06933913]
[1730881681081,0.5686,2585.1,2584.1,0.06933913]
[1730881681254,0.5686,2585.1,2584.2,0.55]
[1730881681459,0.5686,2585.1,2584.2,3.55]
[1730881681762,0.5686,2584.4,2582.7,0.7971]
[1730881682289,0.5786,2584.4,2582.7,0.90796937]
[1730881682493,0.5686,2584.4,2582.7,0.90796937]
[1730881682691,0.5786,2584.4,2582.8,0.3874]
[1730881682900,0.67533967,2584.3,2582.8,0.3874]
[1730881683460,0.67533967,2584.3,2582.7,0.11086937]
[1730881683753,0.67533967,2584.3,2582.7,0.55166645]
[1730881683754,0.01,2584.1,2582.7,0.55166645]
[1730881683981,0.5686,2584.0,2582.7,0.55166645]
[1730881684447,0.01,2584.2,2582.4,0.7749]
[1730881684448,0.5686,2583.4,2582.4,0.11165247]
[1730881684611,0.5686,2583.4,2581.6,0.8116]
[1730881684758,0.5686,2583.4,2581.7,0.3874]
[1730881684960,0.5686,2583.2,2581.7,0.3874]
[1730881685273,0.5686,2583.2,2581.3,0.48804145]
[1730881685457,5.00441847,2583.8,2580.2,2.00314348]
[1730881685458,0.5786,2582.9,2580.6,0.7868]
[1730881685661,0.5686,2582.4,2580.6,0.7868]
[1730881685856,0.5686,2582.2,2580.6,0.7868]
[1730881686076,0.5686,2582.2,2580.2,0.11129997]
[1730881686416,0.5686,2582.2,2580.3,0.48804145]
[1730881686694,0.01,2582.0,2580.3,0.48804145]
[1730881686900,0.5686,2581.9,2580.3,0.48804145]
[1730881687104,0.5686,2581.9,2580.4,0.0696156]
[1730881687255,0.5686,2581.9,2580.1,0.8131]
[1730881687455,0.5686,2581.9,2580.5,0.48804145]
[1730881688105,0.5686,2581.9,2580.2,0.48804145]
[1730881689260,0.5686,2581.9,2580.3,0.55]
[1730881689461,0.5686,2581.9,2580.4,0.54318509]
[1730881689817,0.5686,2581.9,2580.5,0.55]
[1730881690112,0.01,2581.8,2580.4,0.54318509]
[1730881690256,0.5686,2581.7,2580.5,0.06963606]
[1730881690452,0.5686,2581.7,2580.6,3.0]
[1730881691030,0.01,2581.4,2579.5,0.7783]
[1730881691222,0.02,2581.0,2578.9,0.7507]
[1730881691497,0.5686,2580.6,2578.9,1.40512986]
[1730881691709,0.66548886,2580.5,2578.9,1.40512986]
[1730881691945,0.66548886,2580.5,2579.0,0.54318509]
[1730881692055,0.5686,2580.5,2579.0,0.61292952]
[1730881692686,0.5686,2580.3,2579.0,0.54318509]
[1730881692860,0.5686,2580.1,2578.9,0.11124477]
[1730881693056,0.5686,2579.9,2578.0,0.8163]
[1730881693263,0.5686,2579.9,2578.0,1.35948509]
[1730881693570,0.5786,2579.7,2578.0,1.35948509]
[1730881693893,0.66552419,2579.6,2578.0,0.54318509]
[1730881694254,0.67552419,2579.6,2578.0,0.54318509]
[1730881696017,0.5686,2579.6,2578.4,3.55]
[1730881696180,0.5686,2579.6,2578.5,0.355]
[1730881696361,0.5686,2579.6,2578.6,0.06983821]
[1730881696701,0.5686,2579.6,2578.5,0.355]
[1730881697168,0.5686,2579.6,2578.6,0.06982385]
[1730881697373,0.5686,2579.6,2578.7,3.0]
[1730881697867,0.5686,2579.6,2578.8,0.06980162]
[1730881698103,0.5686,2579.6,2578.7,3.0]
[1730881698304,0.5686,2579.6,2578.6,0.34248239]
[1730881698607,0.5686,2579.6,2577.6,0.7837]
[1730881698764,0.66553017,2579.5,2577.6,0.7837]
[1730881698962,0.67553017,2579.5,2577.6,1.3539967]
[1730881699473,0.67553017,2579.5,2577.7,0.5702967]
[1730881700803,0.67553017,2579.5,2578.0,3.0]
[1730881701008,0.67553017,2579.5,2577.8,0.55]
[1730881701009,0.67553017,2579.5,2578.1,0.3]
[1730881701211,0.67553017,2579.5,2577.8,0.55]
[1730881701390,0.67553017,2579.5,2578.0,0.55]
[1730881701596,0.67553017,2579.5,2578.0,3.55]
[1730881701995,0.67553017,2579.5,2578.0,0.55]
[1730881702187,0.67553017,2579.5,2578.1,0.06985495]
[1730881702370,0.67553017,2579.5,2578.1,0.64015165]
[1730881702569,0.67553017,2579.5,2578.2,3.0]
[1730881702570,0.66553017,2579.5,2578.2,3.0]
[1730881702770,0.5686,2579.5,2578.5,3.0]
[1730881702975,0.5686,2579.5,2579.0,3.0]
[1730881703188,0.5686,2579.5,2578.6,1.1202967]
[1730881704723,0.5686,2579.5,2579.1,3.0]
[1730881705325,0.5686,2579.5,2578.7,3.0]
[1730881705526,0.5686,2579.5,2578.3,0.36401517]
[1730881705693,0.5686,2579.5,2578.2,0.5702967]
[1730881706127,0.5686,2579.5,2578.2,0.11235515]
[1730881706294,0.5686,2579.5,2578.1,0.3874]
[1730881706485,0.5686,2579.5,2578.2,0.06984445]
[1730881706987,0.5686,2579.5,2578.2,0.5702967]
[1730881707327,0.5686,2579.5,2578.1,0.9576967]
[1730881708033,0.5686,2579.5,2577.8,0.8043]
[1730881708034,0.5686,2579.5,2578.5,6.50450665]
[1730881708325,0.5686,2579.5,2578.6,3.65045066]
[1730881708916,0.5686,2579.5,2578.8,0.55]
[1730881709293,0.5686,2579.5,2579.1,0.55]
[1730881709508,0.5686,2579.5,2579.2,0.06977803]
[1730881710323,0.5686,2579.5,2579.1,0.55]
[1730881710514,0.5686,2579.5,2579.0,0.55]
[1730881710919,0.5686,2579.5,2579.1,0.06978332]
[1730881711290,0.5686,2579.5,2579.0,0.55]
[1730881712324,0.5686,2579.5,2579.0,6.7832026]
[1730881712525,0.5686,2580.3,2579.2,1.3049]
[1730881712740,0.5686,2580.3,2579.4,0.55]
[1730881712902,0.5686,2580.3,2579.1,3.67832026]
[1730881717020,0.5686,2580.3,2579.6,3.55]
[1730881717205,0.5686,2580.3,2579.7,0.96671067]
[1730881719857,0.5686,2580.3,2579.8,0.06972935]
[1730881720032,0.5686,2581.0,2580.0,9.11710665]
[1730881720225,0.5686,2581.0,2580.1,4.1202967]
[1730881720414,0.5686,2581.0,2580.3,0.55]
[1730881720616,0.5686,2581.0,2580.3,1.1202967]
[1730881720926,0.5686,2581.0,2579.9,0.9576967]
[1730881721127,0.5686,2581.0,2579.7,1.07893362]
[1730881721315,0.5686,2580.8,2579.6,0.11660889]
[1730881721512,0.5686,2580.6,2579.1,0.5702967]
[1730881721750,0.5686,2580.6,2578.8,0.9576967]
[1730881721962,0.6654895,2580.5,2579.0,0.5702967]
[1730881724483,0.6654895,2580.5,2579.0,3.5702967]
[1730881724768,0.6654895,2580.5,2579.1,0.92732637]
[1730881725415,0.6654895,2580.5,2579.1,0.5702967]
[1730881725827,0.6404895,2580.5,2579.2,3.06976884]
[1730881726030,0.6404895,2580.5,2579.2,0.64006554]
[1730881726250,0.6404895,2580.5,2579.3,0.07751436]
[1730881726428,0.6404895,2580.5,2579.3,0.64781106]
[1730881726631,0.6404895,2580.5,2578.8,0.11274178]
[1730881726632,0.5686,2580.5,2579.4,1.1978112]
[1730881726831,0.5686,2580.5,2579.4,1.1202967]
[1730881727055,0.5686,2580.5,2579.4,0.55]
[1730881727234,0.5686,2580.5,2579.5,3.0]
[1730881727461,0.5686,2580.5,2579.6,0.3]
[1730881727661,0.5686,2580.5,2579.5,0.5702967]
[1730881728026,0.5686,2580.5,2579.5,3.5702967]
[1730881728653,0.5686,2580.5,2579.6,3.07750351]
[1730881728858,0.5686,2580.5,2579.6,0.07750351]
[1730881729157,0.5686,2580.5,2579.7,0.55]
[1730881729664,0.5686,2580.5,2579.8,0.07750054]
[1730881729976,0.5686,2580.5,2579.2,0.55]
[1730881730137,0.5686,2580.5,2579.3,0.52277197]
[1730881730666,0.01,2580.1,2577.6,1.94314844]
[1730881730876,0.7783,2579.9,2578.8,0.52277197]
[1730881731918,0.7783,2579.9,2578.9,0.55]
[1730881732121,0.7783,2579.9,2579.0,0.52277197]
[1730881732348,0.7783,2579.9,2579.1,0.55]
[1730881732555,0.7783,2579.9,2579.0,0.52277197]
[1730881732760,0.01,2580.9,2578.5,0.91017197]
[1730881732761,0.01,2579.8,2578.5,0.91017197]
[1730881732917,0.7519,2579.7,2578.5,0.91017197]
[1730881733962,0.7519,2579.7,2578.6,0.55]
[1730881734289,0.7935,2579.5,2578.5,0.52277197]
[1730881734475,0.8035,2579.5,2578.5,0.52277197]
[1730881734871,0.8035,2579.5,2578.5,0.63870202]
[1730881735756,0.7935,2579.5,2578.6,5.09701865]
[1730881735953,0.7935,2579.5,2578.7,1.09634404]
[1730881736191,0.8135,2579.5,2578.5,0.11593005]
[1730881736364,0.7935,2579.2,2578.0,3.0]
[1730881736566,0.7935,2579.2,2578.1,0.52277197]
[1730881737594,0.8103,2579.0,2577.9,5.09701865]
[1730881737795,0.8103,2579.0,2578.0,0.52277197]
[1730881737959,0.8103,2579.0,2578.1,0.56197906]
[1730881738155,0.8103,2579.0,2578.1,1.08475103]
[1730881739652,0.8103,2579.0,2578.5,3.0]
[1730881741094,0.8103,2579.0,2578.5,3.52277197]
[1730881741257,0.8103,2579.0,2578.8,4.32485435]
[1730881741463,0.8103,2579.0,2578.9,3.0]
[1730881742426,0.8103,2579.0,2578.5,3.0]
[1730881742898,0.8103,2579.0,2578.9,3.0]
[1730881743209,0.7899,2579.6,2578.9,3.52277197]
[1730881743502,0.7899,2579.6,2579.4,3.0]
[1730881743855,0.7899,2579.6,2579.0,3.0]
[1730881744061,0.7647,2579.4,2578.5,4.32485435]
[1730881744261,0.7747,2579.4,2578.5,4.32485435]
[1730881744477,0.01,2579.1,2578.5,4.32485435]
[1730881744709,0.7972,2579.0,2578.5,4.32485435]
[1730881744903,0.01,2578.9,2578.4,0.11599731]
[1730881745150,0.7883,2578.8,2578.1,4.88683341]
[1730881745289,0.7883,2578.8,2578.1,4.43841369]
[1730881745490,0.7883,2578.4,2577.7,4.32485435]
[1730881745691,0.7883,2578.4,2577.7,4.84762632]
[1730881745921,0.7883,2578.4,2577.8,0.52277197]
[1730881746253,0.7883,2578.4,2578.1,4.32485435]
[1730881746661,0.7883,2578.4,2578.1,4.75733979]
[1730881746821,0.7883,2578.4,2578.1,4.32485435]
[1730881747145,0.7883,2578.4,2577.7,4.32485435]
[1730881747311,0.7883,2578.4,2577.7,0.52277197]
[1730881749141,0.7883,2578.4,2577.7,3.52277197]
[1730881749465,0.7883,2578.4,2577.8,0.86238974]
[1730881750259,0.8071,2578.0,2577.1,5.10112542]
[1730881750466,0.8071,2578.0,2576.7,0.8236]
[1730881750680,0.8071,2578.0,2577.1,0.52277197]
[1730881751434,0.8071,2578.0,2577.2,0.8109]
[1730881751638,0.8071,2578.0,2577.3,1.07277197]
[1730881753166,0.8071,2578.0,2577.3,0.63708003]
[1730881753333,0.8234,2577.8,2577.3,0.11430806]
[1730881753662,0.8234,2577.8,2576.5,1.90887636]
[1730881753866,0.8234,2577.8,2576.6,0.52277197]
[1730881754435,0.8234,2577.8,2576.7,0.20207686]
[1730881754624,0.8234,2577.8,2576.8,0.52277197]
[1730881754821,0.8234,2577.8,2576.9,0.55]
[1730881755071,0.8234,2577.8,2577.3,3.0]
[1730881755361,0.8234,2577.8,2577.0,0.52277197]
[1730881755526,0.8334,2577.8,2576.8,1.07277197]
[1730881755921,0.8434,2577.8,2576.8,1.07277197]
[1730881756469,0.8234,2577.8,2576.8,1.07277197]
[1730881756632,0.8334,2577.8,2576.8,1.07277197]
[1730881756947,0.8234,2577.8,2576.8,1.07277197]
[1730881757731,0.02,2578.6,2577.1,0.8118]
[1730881757931,0.02,2578.6,2577.2,1.07277197]
[1730881758135,0.01,2578.4,2577.2,1.07277197]
[1730881758770,0.02,2578.6,2577.2,1.07277197]
[1730881759067,0.01,2578.1,2577.2,0.55]
[1730881759253,0.01,2578.4,2577.0,0.55]
[1730881759432,0.01,2578.4,2577.3,0.55]
[1730881759767,0.02,2578.6,2577.3,1.07277197]
[1730881760471,0.01,2578.6,2577.6,0.3874]
[1730881760624,0.01,2578.6,2577.7,0.55]
[1730881760827,0.7722,2578.5,2577.7,0.55]
[1730881761457,0.7722,2578.5,2577.6,0.9374]
[1730881761781,0.7722,2578.9,2577.8,0.3874]
[1730881762074,0.7722,2578.9,2578.1,0.55]
[1730881762831,0.7822,2578.8,2578.1,0.55]
[1730881763757,0.7722,2578.8,2578.1,0.55]
[1730881763967,0.7822,2578.8,2578.1,0.66559581]
[1730881764339,0.7722,2578.8,2578.1,0.66559581]
[1730881765248,0.7722,2578.8,2578.4,3.0]
[1730881765448,0.7722,2578.8,2578.5,0.55]
[1730881767210,0.01,2580.0,2578.7,0.55]
[1730881767348,0.01,2580.0,2579.3,0.55]
[1730881768169,0.01,2580.3,2579.3,3.55]
[1730881768349,0.01,2580.3,2579.5,0.55]
[1730881768673,0.09689817,2580.9,2579.5,0.55]
[1730881768674,0.01,2580.1,2579.5,0.55]
[1730881769350,0.02,2580.4,2579.5,0.55]
[1730881769537,0.01,2580.2,2579.5,0.55]
[1730881769986,0.01,2580.2,2579.5,0.66393607]
[1730881770393,0.4661,2580.1,2579.5,0.66393607]
[1730881771449,0.4661,2580.1,2579.5,1.03032968]
[1730881771786,0.4661,2580.1,2579.5,1.48903607]
[1730881772455,0.4761,2581.1,2579.5,2.01180804]
[1730881772653,0.01,2580.8,2579.7,0.55]
[1730881772977,0.01,2580.8,2579.7,1.07277197]
[1730881773139,0.01,2580.8,2579.6,0.55]
[1730881773355,0.4661,2580.7,2579.6,0.55]
[1730881773844,0.4761,2580.7,2579.6,0.7511808]
[1730881774164,0.4661,2580.7,2579.6,0.55]
[1730881774374,0.01,2580.6,2579.6,0.55]
[1730881774663,0.4661,2580.5,2579.8,3.0]
[1730881774884,0.4761,2580.5,2579.9,0.55]
[1730881775104,0.4661,2580.2,2579.5,0.11393607]
[1730881775392,0.4661,2580.2,2579.5,0.55115724]
[1730881775957,0.4661,2580.2,2579.3,0.11409148]
[1730881776163,0.4661,2580.2,2579.1,0.51597779]
[1730881776365,0.4661,2580.2,2579.2,0.55]
[1730881776559,0.4761,2580.2,2579.1,0.51597779]
[1730881777864,0.4761,2580.2,2579.2,0.55]
[1730881778065,0.4761,2580.2,2579.2,1.06597779]
[1730881778272,0.4761,2580.2,2579.3,0.51597779]
[1730881778488,0.4761,2580.2,2579.4,0.55]
[1730881778995,0.4761,2580.2,2579.5,0.55]
[1730881779203,0.4661,2579.9,2579.2,0.55]
[1730881779469,0.4661,2579.9,2579.1,0.55]
[1730881780265,0.02,2580.9,2579.3,0.55]
[1730881780510,0.01,2580.9,2579.7,0.55]
[1730881780735,0.01,2580.9,2579.7,0.9374]
[1730881781375,0.01,2580.8,2579.7,0.9374]
[1730881782207,0.10686274,2581.3,2579.8,1.1456]
[1730881782436,0.01,2581.7,2580.2,0.3874]
[1730881782597,0.01,2581.8,2580.8,0.3874]
[1730881782916,0.02,2581.8,2580.9,0.55]
[1730881783124,0.01,2581.3,2580.2,3.0]
[1730881783326,0.1188,2581.2,2580.2,0.55]
[1730881783507,0.1188,2581.2,2580.4,0.55]
[1730881783696,0.1188,2581.2,2580.6,0.55]
[1730881784016,0.1188,2581.2,2580.8,0.55]
[1730881784232,0.1188,2581.2,2580.8,1.26044697]
[1730881784379,0.1188,2581.2,2580.9,0.55]
[1730881784584,0.1188,2581.2,2580.9,1.26044697]
[1730881784925,0.1188,2581.2,2580.7,0.55]
[1730881786700,0.1188,2581.6,2580.7,2.12523149]
[1730881786885,0.1188,2581.6,2580.9,0.55]
[1730881787192,0.1188,2581.6,2581.1,0.55]
[1730881788422,0.1188,2581.6,2581.1,1.21731893]
[1730881789386,0.1188,2581.6,2581.3,0.55]
[1730881789586,0.02,2582.2,2581.3,1.21731893]
[1730881789810,0.01,2582.2,2581.5,0.55]
[1730881790014,0.01,2582.2,2581.5,1.21731893]
[1730881790848,0.01,2582.2,2581.3,0.55]
[1730881791050,0.01,2582.2,2581.5,0.55]
[1730881791714,0.01,2582.2,2581.6,3.0]
[1730881792461,0.01,2582.2,2581.5,1.32917789]
[1730881792621,0.1173,2582.1,2581.5,1.32917789]
[1730881793021,0.1173,2582.1,2581.6,3.0]
[1730881793659,0.1173,2582.1,2581.5,0.66185896]
[1730881794025,0.01,2581.9,2581.5,0.11185896]
[1730881794221,0.01,2581.9,2581.2,0.66731893]
[1730881794553,0.1273,2582.1,2581.2,0.66731893]
[1730881794773,0.01,2581.9,2581.2,0.66731893]
[1730881795055,0.1273,2582.1,2581.2,0.66731893]
[1730881795930,0.1173,2582.1,2581.4,0.8071]
[1730881796136,0.1173,2582.1,2581.8,0.55]
[1730881796459,0.1173,2582.1,2581.8,1.21668336]
[1730881796819,0.1173,2582.1,2581.9,0.66668336]
[1730881797061,0.1173,2582.6,2582.0,0.55]
[1730881797884,0.01,2582.5,2581.9,3.0]
[1730881798627,0.01,2582.5,2581.6,0.55]
[1730881798823,0.01,2582.5,2581.8,0.55]
[1730881799225,0.01,2582.5,2581.8,0.66668336]
[1730881799726,0.01,2582.3,2581.6,0.55]
[1730881799964,0.01,2582.3,2581.5,0.55]
[1730881800166,0.01,2582.3,2581.6,0.66668336]
[1730881800626,0.01,2581.9,2580.9,0.11354395]
[1730881800824,0.1173,2581.8,2580.8,0.66668336]
[1730881801028,0.1173,2582.1,2581.0,1.48088336]
[1730881801528,0.1173,2582.7,2581.3,0.3874]
[1730881801839,0.1173,2582.7,2581.7,0.3874]
[1730881802053,0.1173,2583.1,2582.2,0.55]
[1730881802227,0.1173,2583.8,2582.7,0.3874]
[1730881802572,0.1173,2583.8,2582.8,1.21668336]
[1730881802891,0.1173,2583.8,2582.8,1.60408336]
[1730881803169,0.1173,2584.1,2583.0,0.9374]
[1730881803473,0.1173,2584.1,2583.2,0.9374]
[1730881803763,0.01,2583.9,2583.2,0.3874]
[1730881804131,0.01,2583.6,2583.0,0.3874]
[1730881804339,0.1173,2583.5,2582.9,0.9374]
[1730881804643,0.1173,2583.5,2582.9,1.16818806]
[1730881804953,0.1173,2583.1,2582.4,0.66668336]
[1730881805160,0.01,2583.0,2582.4,1.05408336]
[1730881805358,0.1173,2582.7,2582.4,0.66668336]
[1730881805563,0.1173,2582.3,2581.7,0.61976669]
[1730881805867,0.01,2582.2,2581.7,0.11650606]
[1730881806078,0.01,2582.2,2581.7,0.57704169]
[1730881806365,0.1173,2582.3,2581.7,0.57704169]
[1730881806773,0.1173,2582.3,2581.2,1.36403637]
[1730881806936,0.1173,2582.3,2581.3,0.57704169]
[1730881807349,0.01,2582.1,2581.3,0.57704169]
[1730881808581,0.1173,2582.0,2581.3,0.57704169]
[1730881809097,0.01,2581.9,2581.3,0.57704169]
[1730881809443,0.02,2581.9,2581.3,0.57704169]
[1730881809676,0.01,2581.9,2581.3,0.57704169]
[1730881810346,0.1173,2582.0,2581.4,0.55]
[1730881810684,0.01,2583.2,2581.6,0.55]
[1730881810685,0.1373,2582.4,2581.6,0.55]
[1730881811000,0.1273,2582.4,2581.6,0.55]
[1730881811148,0.1273,2582.4,2581.6,1.12704169]
[1730881811986,0.01,2581.9,2581.3,0.57704169]
[1730881812317,0.1173,2581.8,2580.9,0.57704169]
[1730881812848,0.1173,2581.4,2580.3,0.8013]
[1730881813167,0.01,2581.0,2580.0,1.26788003]
[1730881813490,0.1173,2580.7,2580.0,0.11279112]
[1730881813648,0.1173,2580.7,2579.7,0.7562]
[1730881813986,0.1173,2580.7,2579.7,1.33324169]
[1730881814149,0.01,2580.6,2579.7,0.6881942]
[1730881814492,0.1173,2580.2,2579.7,5.01049107]
[1730881814783,0.1173,2580.2,2579.7,5.51154018]
[1730881815349,0.1173,2580.6,2580.1,4.32229687]
[1730881815673,0.1273,2580.6,2580.1,4.32229687]
[1730881816455,0.1273,2580.6,2580.2,3.0]
[1730881817463,0.1273,2580.6,2579.9,3.55]
[1730881817675,0.1273,2580.6,2580.0,0.92195428]
[1730881818160,0.1173,2580.6,2580.0,1.49899597]
[1730881820901,0.1173,2580.6,2580.1,0.55]
[1730881821661,0.1173,2580.6,2580.1,1.12704169]
[1730881821887,0.01,2581.0,2580.3,0.55]
[1730881822093,0.01,2581.3,2580.5,0.55]
[1730881822366,0.01,2581.4,2580.7,0.55]
[1730881822558,0.01,2581.4,2580.7,1.12704169]
[1730881823189,0.01,2581.4,2570.0,0.1290953]
[1730881823190,0.01,2578.9,2577.7,0.8296]
[1730881823414,0.01,2578.9,2577.4,5.15936101]
[1730881823415,0.01,2578.7,2577.4,5.15936101]
[1730881823588,0.01,2578.5,2577.3,0.8276]
[1730881823788,0.01,2578.3,2577.3,0.8276]
[1730881824299,0.02,2578.3,2577.1,5.0925011]
[1730881824511,0.01,2578.1,2577.1,5.0925011]
[1730881824691,0.02,2578.5,2577.1,5.0925011]
[1730881825020,0.01,2578.5,2577.1,5.47554227]
[1730881825319,0.02,2578.5,2577.1,5.47554227]
[1730881825468,0.01,2578.3,2577.2,0.53880737]
[1730881825669,0.01,2578.3,2577.2,3.53880737]
[1730881826982,0.01,2578.3,2577.3,0.38304117]
[1730881827384,0.01,2578.3,2577.4,0.55]
[1730881828065,0.01,2578.7,2577.4,0.55]
[1730881828295,0.01,2578.4,2577.7,3.0]
[1730881828468,0.01,2578.4,2577.8,0.55]
[1730881830267,0.01,2577.5,2576.6,5.0925011]
[1730881830608,0.01,2577.5,2576.6,5.20777935]
[1730881830903,0.01,2577.3,2576.6,5.20777935]
[1730881831413,0.01,2577.8,2577.1,5.0925011]
[1730881831622,0.01,2578.4,2577.1,5.0925011]
[1730881831771,0.02,2578.9,2577.6,5.0925011]
[1730881831972,5.0,2579.0,2577.6,5.0925011]
[1730881831973,0.01,2579.2,2578.1,5.0925011]
[1730881832288,0.01,2579.2,2578.3,0.55]
[1730881832289,0.01,2579.1,2578.3,0.55]
[1730881832506,0.01,2579.0,2578.3,0.55]
[1730881832713,0.01,2578.8,2578.2,3.0]
[1730881833007,0.02,2579.0,2578.2,3.0]
[1730881833211,0.01,2578.8,2578.2,3.0]
[1730881833576,0.01,2578.6,2577.8,0.55]
[1730881834095,0.01,2578.2,2577.7,3.0]
[1730881834783,0.02,2578.2,2577.7,0.11150311]
[1730881834988,0.02,2578.2,2577.1,5.0925011]
[1730881835397,0.02,2578.2,2577.2,0.55]
[1730881838291,0.01,2579.0,2578.3,0.55]
[1730881838473,0.01,2579.1,2578.3,0.55]
[1730881838916,0.01,2579.2,2578.3,0.55]
[1730881839131,0.01,2579.3,2578.3,0.55]
[1730881839321,0.02,2579.3,2578.3,0.55]
[1730881839857,0.01,2579.2,2578.3,0.55]
[1730881840423,0.01,2579.3,2578.3,0.55]
[1730881840583,0.01,2579.2,2578.3,0.55]
[1730881842120,0.01,2579.4,2578.6,5.0925011]
[1730881842302,0.01,2579.4,2578.7,3.0]
[1730881842616,0.02,2579.5,2578.7,3.0]
[1730881842778,0.01,2579.2,2578.7,3.0]
[1730881842979,0.01,2579.3,2578.7,3.0]
[1730881843604,0.01,2579.4,2578.8,0.55]
[1730881843804,0.01,2579.3,2578.7,3.0]
[1730881844115,0.01,2579.2,2578.7,3.0]
[1730881844319,0.01,2578.9,2578.1,5.0925011]
[1730881845411,0.01,2578.7,2578.1,5.20871892]
[1730881845586,0.01,2578.6,2578.1,5.20871892]
[1730881845777,0.01,2578.7,2578.1,5.20871892]
[1730881846590,0.01,2578.7,2578.2,3.0]
[1730881847412,0.01,2578.8,2578.2,3.0]
[1730881847625,0.155043,2579.3,2578.1,5.20871892]
[1730881847626,0.01,2579.3,2578.7,3.0]
[1730881848477,0.01,2579.4,2578.7,3.0]
[1730881848722,0.01,2579.4,2578.8,0.55]
[1730881848920,0.01,2579.3,2578.7,3.0]
[1730881850636,0.01,2579.3,2578.8,0.3874]
[1730881851532,0.01,2579.3,2577.7,2.323]
[1730881851533,0.01,2578.9,2578.3,0.3874]
[1730881851923,0.01,2578.7,2578.3,0.3874]
[1730881852357,0.01,2578.5,2578.3,0.50058733]
[1730881852870,0.01,2578.5,2577.7,0.3874]
[1730881853166,0.01,2578.5,2578.3,0.3874]
[1730881853375,0.01,2578.6,2577.6,5.0925011]
[1730881853376,0.01,2578.2,2577.7,0.3874]
[1730881854369,0.01,2578.2,2577.7,3.3874]
[1730881855383,0.01,2578.2,2577.7,0.3874]
[1730881855578,0.01,2578.2,2577.6,0.11298226]
[1730881855783,0.01,2578.2,2577.5,0.55]
[1730881855999,0.01,2578.2,2577.9,3.0]
[1730881856305,0.10696381,2579.1,2576.6,0.8273]
[1730881856306,0.01,2577.8,2576.6,0.8273]
[1730881856591,0.01,2577.8,2576.7,0.39720784]
[1730881856758,0.01,2577.8,2576.8,0.3874]
[1730881856962,0.01,2577.9,2576.9,0.3874]
[1730881857273,0.01,2577.9,2576.9,0.78460784]
[1730881857474,0.02,2577.9,2576.9,0.78460784]
[1730881857703,0.01,2577.4,2576.6,0.11399622]
[1730881857853,0.01,2577.2,2576.6,0.11399622]
[1730881858195,0.01,2577.2,2575.7,4.10953418]
[1730881858506,0.01,2577.0,2575.8,0.39720784]
[1730881858992,0.01,2577.0,2575.9,0.3874]
[1730881859167,0.01,2577.0,2576.0,0.78460784]
[1730881860458,0.01,2577.0,2576.0,0.39720784]
[1730881860796,0.01,2577.3,2576.7,3.0]
[1730881861098,0.01,2577.6,2576.9,3.0]
[1730881861296,0.01,2577.5,2576.6,0.55]
[1730881861453,0.01,2577.7,2577.4,3.0]
[1730881861658,0.01,2577.7,2576.6,0.94720784]
[1730881861852,0.02,2577.9,2576.4,0.55]
[1730881862096,0.01,2577.9,2577.4,3.0]
[1730881862280,0.01,2578.3,2577.2,0.55]
[1730881862485,0.01,2578.3,2577.2,0.94720784]
[1730881863473,0.01,2578.2,2577.0,0.55]
[1730881863660,0.01,2577.8,2577.0,0.55]
[1730881863999,0.09696011,2579.4,2576.0,0.7677]
[1730881864000,0.01,2577.0,2576.0,0.7677]
[1730881864205,0.02,2577.3,2576.0,0.7677]
[1730881864371,0.01,2577.7,2575.9,0.11494091]
[1730881864558,0.01,2577.7,2576.2,0.7966]
[1730881865370,0.01,2577.7,2576.3,0.55]
[1730881865713,0.01,2577.7,2575.9,3.0]
[1730881865714,0.01,2577.0,2575.6,0.7966]
[1730881866072,0.01,2576.7,2575.6,0.7966]
[1730881866620,0.01,2576.4,2575.5,0.11267219]
[1730881866825,0.01,2576.2,2575.5,0.11267219]
[1730881867123,0.01,2576.3,2575.3,0.2437398]
[1730881867316,0.01,2576.6,2575.4,0.7966]
[1730881867610,0.01,2576.6,2575.4,1.2494745]
[1730881868310,0.01,2576.7,2575.4,1.2494745]
[1730881868522,0.01,2576.9,2575.5,0.55]
[1730881868720,0.01,2576.7,2575.5,0.55]
[1730881869106,0.01,2576.7,2576.5,3.0]
[1730881869310,0.01,2576.7,2575.5,0.55]
[1730881869478,0.01,2576.7,2576.5,3.0]
[1730881869680,0.01,2576.7,2575.5,0.55]
[1730881870193,0.01,2576.0,2575.3,0.2437398]
[1730881870379,0.01,2576.0,2575.4,0.60714996]
[1730881871077,0.01,2575.3,2575.2,0.00490516]
[1730881871430,0.03,2575.3,2575.2,0.00490516]
[1730881871982,5.0,2575.9,2574.2,0.69037312]